[Event "Caplin Hastings Masters 2023-24"]
[Site "Hastings"]
[Date "2023.12.31"]
[Round "4.13"]
[White "Hobson, Kenneth"]
[Black "Sulskis, Sarunas"]
[Result "0-1"]
[ECO "C15"]
[WhiteElo "2130"]
[BlackElo "2490"]
[Annotator "TA"]
[PlyCount "50"]
[EventDate "2023.12.18"]
[EventType "swiss"]
[EventCountry "ENG"]
[SourceTitle "playchess.com"]
[Source "ChessBase"]
[SourceQuality "1"]
[TimeControl "40/6000+30:3000+30"]

{[%evp 12,50,0,0,0,0,27,33,27,20,21,24,28,29,28,-41,-36,-48,-75,-81,-43,-77,-77,-85,-84,-129,-129,-118,-80,-77,-70,-337,-193,-374,-336,-5735,-2402,-29988,-29989,-29992,-29993]} 1. e4 {[%emt 0:00:03]} e6 {[%emt 0:00:08]} 2. d4 {[%emt 0:00:57]} d5 {[%emt 0:00:07]} 3. Nc3 {[%emt 0:00:47]} Bb4 {[%emt 0:00:14]} 4. Nge2 {[%emt 0:00:47]} Nc6 {[%emt 0:06:14]} 5. a3 {[%emt 0:01:51]} Bxc3+ {[%emt 0:03:54]} 6. Nxc3 {[%emt 0:00:39]} dxe4 {[%emt 0:00:11]} 7. Bf4 {[%emt 0:02:23]} Nf6 {[%emt 0:02:30] C15: French: 3 Nc3 Bb4: Unusual White 4th moves.} 8. Bb5 {[%emt 0:03:53]} O-O {[%emt 0:06:29]} 9. Bxc6 {[%emt 0:02:50]} bxc6 {[%emt 0:00:11] Black is weak on the dark squares. White is slightly better.} 10. Qd2 {[%emt 0:11:17]} Nd5 {[%emt 0:10:33]} 11. O-O-O $1 {[%emt 0:03:58][%mdl 1024] [#] White has compensation.} Qf6 $146 {[%emt 0:04:01]} ({Predecessor:} 11... Nxc3 12. Qxc3 Qd5 13. Bxc7 a5 14. Qc5 a4 15. c4 Qf5 16. Qxf5 exf5 17. d5 cxd5 18. cxd5 {0-1 Zelcic,R (2509)-Martinovic,S (2540) Zagreb Hulak Memorial op 1st 2016 (7)}) 12. Be5 {[%emt 0:07:44]} Qg6 {[%emt 0:02:44]} 13. h4 {[%emt 0:05:07]} (13. Bg3 $11) 13... f6 $15 {[%emt 0:06:24]} (13... Qxg2 $2 14. Nxd5 exd5 15. Rhg1 $18) 14. h5 {[%emt 0:04:46]} Qxg2 {[%emt 0:06:42]} 15. Nxd5 {[%emt 0:01:27]} exd5 {[%emt 0:00:33]} 16. Bxc7 {[%emt 0:08:54]} Bg4 {[%emt 0:08:11]} 17. Rdg1 {[%emt 0:01:56]} Qf3 {[%emt 0:01:04] Black is more active.} 18. Rh4 {[%emt 0:03:16]} Bxh5 {[%emt 0:02:34]} 19. Bd6 {[%emt 0:03:11] [#]} g5 $1 {[%emt 0:06:27]} 20. Bxf8 {[%emt 0:07:43]} Rxf8 {[%emt 0:00:22]} 21. Rf4 $2 {[%emt 0:04:11][%mdl 8192] Loses the game.} (21. Rh2 $1 $15) 21... Qe2 $40 {[%emt 0:06:32][%mdl 128] Black wants a kill.} (21... Qh3 $142 {And now ...Qh2 would win.} 22. f3 (22. Rxf6 $2 Rxf6 23. Qxg5+ Kf7 $19) 22... Bxf3) 22. Qb4 $2 {[%emt 0:02:33]} (22. Rh4 Qxd2+ 23. Kxd2) 22... e3 {[%emt 0:02:21]} 23. Rxf6 {[%emt 0:10:21] [#]} (23. Rxg5+ Bg6 24. Rxg6+ hxg6 25. fxe3 {[%mdl 64] Remove Defender}) 23... Rxf6 $19 {[%emt 0:01:54]} 24. Rxg5+ {[%emt 0:01:15]} Bg6 {[%emt 0:00:22][%csl Gg6][%cal Re2c2]} 25. Qb8+ {[%emt 0:01:27]} Rf8 {[%emt 0:00:09] Weighted Error Value: White=0.83/Black=0.20 (precise)} 0-1

[Event "Caplin Hastings Masters 2023-24"]
[Site "Hastings"]
[Date "2023.12.31"]
[Round "4.14"]
[White "Bai, Xue"]
[Black "Gallagher, Joseph G."]
[Result "0-1"]
[ECO "B90"]
[WhiteElo "2099"]
[BlackElo "2427"]
[Annotator "RC"]
[PlyCount "104"]
[EventDate "2023.12.18"]
[EventType "swiss"]
[EventCountry "ENG"]
[SourceTitle "playchess.com"]
[Source "ChessBase"]
[SourceQuality "1"]
[TimeControl "40/6000+30:3000+30"]

1. e4 {[%emt 0:00:13]} c5 {[%emt 0:01:51]} 2. Nf3 {[%emt 0:00:07]} d6 {[%emt 0:00:32]} 3. d4 {[%emt 0:00:07]} cxd4 {[%emt 0:00:07]} 4. Nxd4 {[%emt 0:00:05]} Nf6 {[%emt 0:00:06]} 5. Nc3 {[%emt 0:00:11]} a6 {[%emt 0:00:32]} 6. h3 {[%emt 0:00:37]} Nc6 {[%emt 0:01:49]} 7. g4 {[%emt 0:01:21]} Qb6 {[%emt 0:03:57]} 8. Nb3 {[%emt 0:01:04]} e6 {[%emt 0:00:14]} 9. Be3 {[%emt 0:00:23]} Qc7 {[%emt 0:00:08]} 10. f4 {[%emt 0:04:05]} b5 {[%emt 0:04:32]} 11. Bg2 {[%emt 0:02:32]} Bb7 {[%emt 0:02:58]} 12. a3 {[%emt 0:02:13]} Be7 {[%emt 0:00:57]} 13. Qe2 {[%emt 0:02:40]} Nd7 {[%emt 0:13:54]} 14. Qf2 {[%emt 0:10:08]} O-O {[%emt 0:04:18]} 15. O-O {[%emt 0:01:13]} Rfe8 {[%emt 0:07:07]} 16. Ne2 {[%emt 0:06:53]} Rab8 {[%emt 0:04:55]} 17. c3 {[%emt 0:06:27]} Ba8 {[%emt 0:01:28]} 18. g5 {[%emt 0:07:12]} Bf8 {[%emt 0:01:18]} 19. Rad1 {[%emt 0:01:12]} Nb6 {[%emt 0:01:18]} 20. Bxb6 {[%emt 0:01:09]} Qxb6 {[%emt 0:02:11]} 21. Ned4 {[%emt 0:06:48]} Nxd4 {[%emt 0:22:27]} 22. Qxd4 {[%emt 0:04:34]} Qc7 {[%emt 0:00:44]} 23. Qd3 {[%emt 0:01:25]} Be7 {[%emt 0:05:56]} 24. h4 {[%emt 0:00:25]} Qc4 {[%emt 0:04:04]} 25. Nd4 {[%emt 0:01:39]} Bd8 {[%emt 0:03:19]} 26. b4 {[%emt 0:03:44]} Rc8 {[%emt 0:00:51]} 27. Qxc4 {[%emt 0:05:55]} Rxc4 {[%emt 0:00:45]} 28. Rd3 {[%emt 0:00:13]} Bb6 {[%emt 0:01:52]} 29. Kh1 {[%emt 0:00:21]} g6 {[%emt 0:05:06]} 30. Nb3 {[%emt 0:06:11]} Bxe4 {[%emt 0:07:50]} 31. Bxe4 {[%emt 0:02:58]} Rxe4 {[%emt 0:00:02]} 32. Nd2 {[%emt 0:01:44]} Re2 {[%emt 0:01:46]} 33. Rxd6 {[%emt 0:00:10]} Bc7 {[%emt 0:01:10]} 34. Rd7 {[%emt 0:03:04]} Rd8 {[%emt 0:01:22]} 35. Rxd8+ {[%emt 0:02:19]} Bxd8 {[%emt 0:00:01]} 36. Nb3 {[%emt 0:02:06]} Re3 {[%emt 0:01:26]} 37. Kg2 {[%emt 0:02:04]} Rxc3 {[%emt 0:00:32]} 38. Rf3 {[%emt 0:00:55]} Rc4 {[%emt 0:03:33]} 39. Nc5 {[%emt 0:02:58]} Bc7 {[%emt 0:00:11]} 40. Rd3 {[%emt 0:02:00]} Bxf4 {[%emt 0:01:51]} 41. Rd8+ {[%emt 0:53:06]} Kg7 {[%emt 0:50:15]} 42. Rd7 {[%emt 0:02:15]} Kf8 {[%emt 0:00:35]} 43. Ra7 {[%emt 0:00:37]} Be3 {[%emt 0:01:14]} 44. Nd7+ {[%emt 0:04:23]} Kg7 {[%emt 0:00:00]} 45. Rxa6 {[%emt 0:00:00]} Rxh4 {[%emt 0:00:00]} 46. Ra5 {[%emt 0:00:00]} Bc1 {[%emt 0:00:00]} 47. Ne5 {[%emt 0:00:00]} Re4 {[%emt 0:00:00]} 48. Nd3 {[%emt 0:00:00]} Bxg5 {[%emt 0:00:00]} 49. Rxb5 {[%emt 0:00:00]} Re2+ {[%emt 0:00:00]} 50. Kf1 {[%emt 0:00:00]} Rd2 {[%emt 0:00:00]} 51. Nc5 {[%emt 0:00:00]} Be3 {[%emt 0:00:00]} 52. Ne4 {[%emt 0:00:00]} Ra2 {[%emt 0:00:00]} 0-1

[Event "Caplin Hastings Masters 2023-24"]
[Site "Hastings"]
[Date "2023.12.31"]
[Round "4.15"]
[White "Derakhshani, Borna"]
[Black "Rami, Talab"]
[Result "1-0"]
[ECO "D78"]
[WhiteElo "2380"]
[BlackElo "1947"]
[Annotator "RC"]
[PlyCount "107"]
[EventDate "2023.12.18"]
[EventType "swiss"]
[EventCountry "ENG"]
[SourceTitle "playchess.com"]
[Source "ChessBase"]
[SourceQuality "1"]
[TimeControl "40/6000+30:3000+30"]

1. Nf3 {[%emt 0:00:32]} Nf6 {[%emt 0:02:29]} 2. c4 {[%emt 0:00:05]} g6 {[%emt 0:01:50]} 3. g3 {[%emt 0:00:10]} Bg7 {[%emt 0:00:21]} 4. Bg2 {[%emt 0:00:08]} O-O {[%emt 0:01:20]} 5. O-O {[%emt 0:00:06]} c6 {[%emt 0:02:16]} 6. d4 {[%emt 0:01:32]} d5 {[%emt 0:00:24]} 7. Nbd2 {[%emt 0:00:25]} Nbd7 {[%emt 0:06:42]} 8. Re1 {[%emt 0:00:48]} dxc4 {[%emt 0:03:59]} 9. Nxc4 {[%emt 0:00:31]} Nb6 {[%emt 0:00:25]} 10. Nce5 {[%emt 0:02:23]} Ng4 {[%emt 0:02:28]} 11. Bf4 {[%emt 0:15:29]} Nxe5 {[%emt 0:05:47]} 12. Bxe5 {[%emt 0:01:51]} Bg4 {[%emt 0:03:49]} 13. Bxg7 {[%emt 0:01:12]} Kxg7 {[%emt 0:00:14]} 14. Ne5 {[%emt 0:00:03]} Be6 {[%emt 0:00:17]} 15. e3 {[%emt 0:09:20]} Qd6 {[%emt 0:08:29]} 16. Qc2 {[%emt 0:04:31]} Rac8 {[%emt 0:02:16]} 17. Rac1 {[%emt 0:20:02]} Bd5 {[%emt 0:12:05]} 18. e4 {[%emt 0:07:38]} Be6 {[%emt 0:00:33]} 19. Qc3 {[%emt 0:00:17]} Rfd8 {[%emt 0:11:31]} 20. Red1 {[%emt 0:16:21]} f6 {[%emt 0:04:33]} 21. Nf3 {[%emt 0:04:51]} Bg4 {[%emt 0:12:42]} 22. Qa5 {[%emt 0:00:11]} c5 {[%emt 0:01:39]} 23. d5 {[%emt 0:01:37]} a6 {[%emt 0:02:58]} 24. Rd3 {[%emt 0:05:37]} Bxf3 {[%emt 0:04:51]} 25. Rxf3 {[%emt 0:00:21]} Nd7 {[%emt 0:02:56]} 26. Re3 {[%emt 0:04:38]} g5 {[%emt 0:05:15]} 27. Bh3 {[%emt 0:00:33]} b5 {[%emt 0:00:40]} 28. Bf5 {[%emt 0:00:43]} Rc7 {[%emt 0:00:52]} 29. Qd2 {[%emt 0:00:51]} Nf8 {[%emt 0:02:16]} 30. Qc3 {[%emt 0:03:30]} Ng6 {[%emt 0:02:48]} 31. Rd1 {[%emt 0:00:59]} e5 {[%emt 0:00:37]} 32. Qc2 {[%emt 0:00:52]} Ne7 {[%emt 0:00:28]} 33. Bg4 {[%emt 0:00:00]} c4 {[%emt 0:00:45]} 34. Qe2 {[%emt 0:00:25]} Rh8 {[%emt 0:01:50]} 35. Kg2 {[%emt 0:00:30]} Kf8 {[%emt 0:01:56]} 36. Rc3 {[%emt 0:00:12]} Kg7 {[%emt 0:00:38]} 37. b3 {[%emt 0:00:41]} f5 {[%emt 0:01:32]} 38. exf5 {[%emt 0:00:27]} Nxd5 {[%emt 0:00:34]} 39. Qd2 {[%emt 0:01:43]} Rd8 {[%emt 0:00:11]} 40. Qxg5+ {[%emt 0:00:40]} Kf8 {[%emt 0:01:17]} 41. f6 {[%emt 0:19:11]} Rf7 {[%emt 0:03:10]} 42. bxc4 {[%emt 0:03:24]} bxc4 {[%emt 0:00:37]} 43. Qh6+ {[%emt 0:09:48]} Kg8 {[%emt 0:00:59]} 44. Rxc4 {[%emt 0:00:11]} Rxf6 {[%emt 0:00:31]} 45. Qg5+ {[%emt 0:00:37]} Rg6 {[%emt 0:00:39]} 46. Qf5 {[%emt 0:05:02]} Rf6 {[%emt 0:17:40]} 47. Qc2 {[%emt 0:03:04]} Rdf8 {[%emt 0:03:10]} 48. Rc8 {[%emt 0:00:47]} Qb4 {[%emt 0:15:38]} 49. Rxf8+ {[%emt 0:00:27]} Kxf8 {[%emt 0:00:08]} 50. Bf3 {[%emt 0:04:47]} Nc3 {[%emt 0:06:13]} 51. Rd8+ {[%emt 0:00:28]} Ke7 {[%emt 0:00:35]} 52. Qd2 {[%emt 0:03:11]} Qb5 {[%emt 0:01:49]} 53. Rh8 {[%emt 0:02:11]} Rxf3 {[%emt 0:01:49]} 54. Qd8+ {[%emt 0:00:12]} 1-0

[Event "Caplin Hastings Masters 2023-24"]
[Site "Hastings"]
[Date "2023.12.31"]
[Round "4.16"]
[White "Brown, Thomas"]
[Black "Grutter, Tim"]
[Result "0-1"]
[ECO "E71"]
[WhiteElo "2095"]
[BlackElo "2342"]
[Annotator "RC"]
[PlyCount "56"]
[EventDate "2023.12.18"]
[EventType "swiss"]
[EventCountry "ENG"]
[SourceTitle "playchess.com"]
[Source "ChessBase"]
[SourceQuality "1"]
[TimeControl "40/6000+30:3000+30"]

1. d4 {[%emt 0:00:03]} Nf6 {[%emt 0:00:09]} 2. c4 {[%emt 0:00:06]} g6 {[%emt 0:00:05]} 3. Nc3 {[%emt 0:00:06]} Bg7 {[%emt 0:00:05]} 4. e4 {[%emt 0:00:06]} d6 {[%emt 0:00:04]} 5. h3 {[%emt 0:00:14]} Nc6 {[%emt 0:00:14]} 6. d5 {[%emt 0:07:12]} Ne5 {[%emt 0:00:07]} 7. f4 {[%emt 0:00:53]} Ned7 {[%emt 0:00:31]} 8. Be2 {[%emt 0:04:11]} e5 {[%emt 0:11:25]} 9. Nf3 {[%emt 0:00:56]} Nh5 {[%emt 0:05:16]} 10. fxe5 {[%emt 0:10:52]} Nxe5 {[%emt 0:04:07]} 11. Be3 {[%emt 0:10:44]} Ng3 {[%emt 0:02:59]} 12. Rg1 {[%emt 0:04:23]} O-O {[%emt 0:05:26]} 13. Qd2 {[%emt 0:14:49]} f5 {[%emt 0:06:22]} 14. O-O-O {[%emt 0:11:18]} fxe4 {[%emt 0:11:43]} 15. Nd4 {[%emt 0:09:50]} Qe7 {[%emt 0:07:56]} 16. Kb1 {[%emt 0:05:38]} Bd7 {[%emt 0:07:54]} 17. Qe1 {[%emt 0:01:59]} Nf5 {[%emt 0:03:20]} 18. Nxf5 {[%emt 0:01:47]} gxf5 {[%emt 0:00:10]} 19. Qd2 {[%emt 0:01:39]} a6 {[%emt 0:03:19]} 20. g4 {[%emt 0:04:42]} fxg4 {[%emt 0:01:00]} 21. hxg4 {[%emt 0:01:21]} Nf3 {[%emt 0:00:57]} 22. Bxf3 {[%emt 0:00:20]} exf3 {[%emt 0:00:28]} 23. Rdf1 {[%emt 0:04:34]} b5 {[%emt 0:03:26]} 24. cxb5 {[%emt 0:04:05]} axb5 {[%emt 0:00:42]} 25. Bd4 {[%emt 0:00:12]} b4 {[%emt 0:03:26]} 26. Bxg7 {[%emt 0:00:30]} Qxg7 {[%emt 0:00:10]} 27. Ne4 {[%emt 0:00:28]} Qg6 {[%emt 0:02:37]} 28. Qg5 {[%emt 0:01:57]} Bb5 {[%emt 0:00:51]} 0-1

[Event "Caplin Hastings Masters 2023-24"]
[Site "Hastings"]
[Date "2023.12.31"]
[Round "4.17"]
[White "Fischer, Daniel"]
[Black "Weersing, Abigail Riis"]
[Result "1-0"]
[ECO "C06"]
[WhiteElo "2341"]
[BlackElo "2056"]
[Annotator "RC"]
[PlyCount "73"]
[EventDate "2023.12.18"]
[EventType "swiss"]
[EventCountry "ENG"]
[SourceTitle "playchess.com"]
[Source "ChessBase"]
[SourceQuality "1"]
[TimeControl "40/6000+30:3000+30"]

1. e4 {[%emt 0:00:04]} e6 {[%emt 0:00:05]} 2. d4 {[%emt 0:00:07]} d5 {[%emt 0:00:05]} 3. Nd2 {[%emt 0:00:16]} Nf6 {[%emt 0:00:06]} 4. e5 {[%emt 0:00:30]} Nfd7 {[%emt 0:00:05]} 5. Bd3 {[%emt 0:00:21]} c5 {[%emt 0:00:08]} 6. c3 {[%emt 0:00:04]} Nc6 {[%emt 0:00:21]} 7. Ne2 {[%emt 0:00:36]} cxd4 {[%emt 0:00:21]} 8. cxd4 {[%emt 0:00:05]} f6 {[%emt 0:01:03]} 9. exf6 {[%emt 0:00:08]} Nxf6 {[%emt 0:00:10]} 10. O-O {[%emt 0:00:51]} Bd6 {[%emt 0:00:59]} 11. Nf3 {[%emt 0:00:40]} Qc7 {[%emt 0:00:15]} 12. h3 {[%emt 0:02:07]} O-O {[%emt 0:01:44]} 13. Re1 {[%emt 0:00:42]} Bd7 {[%emt 0:06:57]} 14. Be3 {[%emt 0:00:24]} Rac8 {[%emt 0:04:50]} 15. Rc1 {[%emt 0:05:50]} Qb8 {[%emt 0:04:34]} 16. Nc3 {[%emt 0:03:35]} a6 {[%emt 0:14:44]} 17. a3 {[%emt 0:07:02]} b5 {[%emt 0:03:58]} 18. Bb1 {[%emt 0:09:31]} b4 {[%emt 0:10:40]} 19. axb4 {[%emt 0:01:50]} Qxb4 {[%emt 0:03:15]} 20. Qe2 {[%emt 0:17:08]} Rb8 {[%emt 0:05:34]} 21. Rc2 {[%emt 0:08:09]} Qa5 {[%emt 0:02:02]} 22. Rd2 {[%emt 0:06:20]} Bb4 {[%emt 0:15:02]} 23. Rc1 {[%emt 0:14:15]} Bd6 {[%emt 0:12:16]} 24. Bg5 {[%emt 0:05:55]} Rb4 {[%emt 0:10:21]} 25. Na2 {[%emt 0:06:37]} Rb6 {[%emt 0:01:38]} 26. Ne5 {[%emt 0:02:45]} Bxe5 {[%emt 0:07:39]} 27. dxe5 {[%emt 0:00:04]} Ne4 {[%emt 0:01:14]} 28. Bxe4 {[%emt 0:02:45]} Qxa2 {[%emt 0:00:17]} 29. Bb1 {[%emt 0:01:08]} Qa5 {[%emt 0:03:36]} 30. Qh5 {[%emt 0:01:22]} h6 {[%emt 0:00:21]} 31. Qg6 {[%emt 0:03:30]} Nxe5 {[%emt 0:00:21]} 32. Qh7+ {[%emt 0:00:04]} Kf7 {[%emt 0:00:04]} 33. Bxh6 {[%emt 0:00:28]} Rg8 {[%emt 0:00:41]} 34. Rd4 {[%emt 0:02:19]} Rbb8 {[%emt 0:01:15]} 35. Bxg7 {[%emt 0:04:23]} Nf3+ {[%emt 0:00:16]} 36. gxf3 {[%emt 0:02:47]} Rxg7+ {[%emt 0:00:15]} 37. Bg6+ {[%emt 0:00:05]} 1-0

[Event "Caplin Hastings Masters 2023-24"]
[Site "Hastings"]
[Date "2023.12.31"]
[Round "4.18"]
[White "Waldhausen Gordon, Frederick"]
[Black "Sivanandan, Bodhana"]
[Result "1-0"]
[ECO "D46"]
[WhiteElo "2338"]
[BlackElo "1857"]
[Annotator "RC"]
[PlyCount "155"]
[EventDate "2023.12.18"]
[EventType "swiss"]
[EventCountry "ENG"]
[SourceTitle "playchess.com"]
[Source "ChessBase"]
[SourceQuality "1"]
[TimeControl "40/6000+30:3000+30"]

1. d4 {[%emt 0:00:02]} d5 {[%emt 0:02:36]} 2. c4 {[%emt 0:00:05]} c6 {[%emt 0:00:17]} 3. Nc3 {[%emt 0:00:11]} Nf6 {[%emt 0:00:27]} 4. Nf3 {[%emt 0:00:05]} e6 {[%emt 0:00:33]} 5. e3 {[%emt 0:00:17]} Nbd7 {[%emt 0:00:42]} 6. Bd3 {[%emt 0:00:57]} dxc4 {[%emt 0:00:40]} 7. Bxc4 {[%emt 0:00:06]} b5 {[%emt 0:00:45]} 8. Bd3 {[%emt 0:00:18]} Bd6 {[%emt 0:01:08]} 9. O-O {[%emt 0:00:28]} O-O {[%emt 0:00:37]} 10. Qc2 {[%emt 0:01:03]} Bb7 {[%emt 0:06:32]} 11. h3 {[%emt 0:04:10]} h6 {[%emt 0:10:38]} 12. e4 {[%emt 0:03:10]} e5 {[%emt 0:04:38]} 13. Rd1 {[%emt 0:05:38]} Qc7 {[%emt 0:06:19]} 14. Be3 {[%emt 0:04:47]} a6 {[%emt 0:09:15]} 15. dxe5 {[%emt 0:06:26]} Nxe5 {[%emt 0:05:41]} 16. Nxe5 {[%emt 0:00:17]} Bxe5 {[%emt 0:00:06]} 17. Bc5 {[%emt 0:00:10]} Rfe8 {[%emt 0:04:50]} 18. a4 {[%emt 0:14:20]} Rad8 {[%emt 0:12:23]} 19. Ne2 {[%emt 0:03:39]} Rd7 {[%emt 0:12:52]} 20. f3 {[%emt 0:08:30]} Nh5 {[%emt 0:03:00]} 21. a5 {[%emt 0:02:26]} Qd8 {[%emt 0:01:21]} 22. Bf2 {[%emt 0:07:27]} Qf6 {[%emt 0:01:58]} 23. Rab1 {[%emt 0:02:08]} Nf4 {[%emt 0:01:48]} 24. Nxf4 {[%emt 0:05:27]} Qxf4 {[%emt 0:00:24]} 25. Kf1 {[%emt 0:00:43]} Red8 {[%emt 0:04:35]} 26. Be2 {[%emt 0:09:53]} Rd2 {[%emt 0:05:41]} 27. g3 {[%emt 0:00:39]} Rxd1+ {[%emt 0:00:41]} 28. Rxd1 {[%emt 0:00:24]} Qf6 {[%emt 0:00:21]} 29. f4 {[%emt 0:01:50]} Bc7 {[%emt 0:00:40]} 30. Rxd8+ {[%emt 0:00:55]} Qxd8 {[%emt 0:00:07]} 31. b4 {[%emt 0:00:10]} Bc8 {[%emt 0:01:05]} 32. Kg2 {[%emt 0:00:23]} Qe8 {[%emt 0:02:19]} 33. e5 {[%emt 0:02:08]} Bd7 {[%emt 0:01:02]} 34. Bb6 {[%emt 0:02:34]} Bb8 {[%emt 0:01:57]} 35. Qd2 {[%emt 0:01:10]} Be6 {[%emt 0:02:54]} 36. Bf3 {[%emt 0:00:38]} Qd7 {[%emt 0:00:20]} 37. Qxd7 {[%emt 0:00:08]} Bxd7 {[%emt 0:00:07]} 38. Bc5 {[%emt 0:00:14]} g5 {[%emt 0:02:07]} 39. fxg5 {[%emt 0:08:20]} hxg5 {[%emt 0:00:14]} 40. Bd4 {[%emt 0:00:08]} Bc7 {[%emt 0:04:40]} 41. Be4 {[%emt 0:50:30]} Bd8 {[%emt 0:50:48]} 42. Bc5 {[%emt 0:00:21]} Bc7 {[%emt 0:00:00]} 43. Bd6 {[%emt 0:00:00]} Bxd6 {[%emt 0:00:00]} 44. exd6 {[%emt 0:00:00]} f5 {[%emt 0:00:00]} 45. Bc2 {[%emt 0:00:00]} Kf7 {[%emt 0:00:00]} 46. Bb3+ {[%emt 0:00:00]} Kf6 {[%emt 0:00:00]} 47. h4 {[%emt 0:00:00]} gxh4 {[%emt 0:00:00]} 48. gxh4 {[%emt 0:00:00]} Be8 {[%emt 0:00:00]} 49. Kg3 {[%emt 0:00:00]} Ke5 {[%emt 0:00:00]} 50. Bf7 {[%emt 0:00:00]} f4+ {[%emt 0:00:00]} 51. Kf3 {[%emt 0:00:00]} Bd7 {[%emt 0:00:00]} 52. h5 {[%emt 0:00:00]} Kxd6 {[%emt 0:00:00]} 53. h6 {[%emt 0:00:00]} Bf5 {[%emt 0:00:00]} 54. Kxf4 {[%emt 0:00:00]} Bh7 {[%emt 0:00:00]} 55. Kg5 {[%emt 0:00:00]} Ke5 {[%emt 0:00:00]} 56. Bg6 {[%emt 0:00:00]} Bg8 {[%emt 0:00:00]} 57. Bb1 {[%emt 0:00:00]} Kd4 {[%emt 0:00:00]} 58. Kg6 {[%emt 0:00:00]} c5 {[%emt 0:00:00]} 59. Kg7 {[%emt 0:00:00]} Bb3 {[%emt 0:00:00]} 60. bxc5 {[%emt 0:00:00]} Kxc5 {[%emt 0:00:00]} 61. h7 {[%emt 0:00:00]} Kb4 {[%emt 0:00:00]} 62. h8=Q {[%emt 0:00:00]} Kxa5 {[%emt 0:00:00]} 63. Qd8+ {[%emt 0:00:00]} Ka4 {[%emt 0:00:00]} 64. Qb6 {[%emt 0:00:00]} a5 {[%emt 0:00:00]} 65. Bd3 {[%emt 0:00:00]} Bc4 {[%emt 0:00:00]} 66. Bxc4 {[%emt 0:00:00]} bxc4 {[%emt 0:00:00]} 67. Qb2 {[%emt 0:00:00]} c3 {[%emt 0:00:00]} 68. Qxc3 {[%emt 0:00:00]} Kb5 {[%emt 0:00:00]} 69. Qb3+ {[%emt 0:00:00]} Ka6 {[%emt 0:00:00]} 70. Kf6 {[%emt 0:00:00]} Ka7 {[%emt 0:00:00]} 71. Qb5 {[%emt 0:00:00]} Ka8 {[%emt 0:00:00]} 72. Qxa5+ {[%emt 0:00:00]} Kb7 {[%emt 0:00:00]} 73. Qc5 {[%emt 0:00:00]} Ka8 {[%emt 0:00:00]} 74. Qb5 {[%emt 0:00:00]} Ka7 {[%emt 0:00:00]} 75. Ke7 {[%emt 0:00:00]} Ka8 {[%emt 0:00:00]} 76. Kd6 {[%emt 0:00:00]} Ka7 {[%emt 0:00:00]} 77. Kc7 {[%emt 0:00:00]} Ka8 {[%emt 0:00:00]} 78. Qb8# {[%emt 0:00:00]} 1-0

[Event "Caplin Hastings Masters 2023-24"]
[Site "Hastings"]
[Date "2023.12.31"]
[Round "4.19"]
[White "Lishoy Gengis Paratazham, Dildarav"]
[Black "Vestby-Ellingsen, Mads"]
[Result "0-1"]
[ECO "B70"]
[WhiteElo "1743"]
[BlackElo "2329"]
[Annotator "RC"]
[PlyCount "108"]
[EventDate "2023.12.18"]
[EventType "swiss"]
[EventCountry "ENG"]
[SourceTitle "playchess.com"]
[Source "ChessBase"]
[SourceQuality "1"]
[TimeControl "40/6000+30:3000+30"]

1. e4 {[%emt 0:00:03]} c5 {[%emt 0:00:25]} 2. Nf3 {[%emt 0:00:27]} d6 {[%emt 0:00:28]} 3. Nc3 {[%emt 0:00:30]} Nf6 {[%emt 0:00:46]} 4. d4 {[%emt 0:00:36]} cxd4 {[%emt 0:00:14]} 5. Nxd4 {[%emt 0:00:06]} Nc6 {[%emt 0:00:48]} 6. g3 {[%emt 0:00:31]} g6 {[%emt 0:02:10]} 7. Bg2 {[%emt 0:01:00]} Nxd4 {[%emt 0:00:39]} 8. Qxd4 {[%emt 0:00:15]} Bg7 {[%emt 0:00:13]} 9. O-O {[%emt 0:02:12]} O-O {[%emt 0:00:19]} 10. Qd3 {[%emt 0:01:10]} Rb8 {[%emt 0:04:44]} 11. h3 {[%emt 0:03:17]} Be6 {[%emt 0:10:13]} 12. Be3 {[%emt 0:09:50]} a6 {[%emt 0:01:44]} 13. Qd2 {[%emt 0:02:11]} Re8 {[%emt 0:06:07]} 14. Bh6 {[%emt 0:02:32]} Bh8 {[%emt 0:01:04]} 15. Nd5 {[%emt 0:01:56]} b5 {[%emt 0:05:21]} 16. Bg5 {[%emt 0:03:58]} Nxd5 {[%emt 0:05:48]} 17. exd5 {[%emt 0:00:09]} Bd7 {[%emt 0:00:25]} 18. c3 {[%emt 0:00:39]} b4 {[%emt 0:25:16]} 19. c4 {[%emt 0:16:13]} Qc8 {[%emt 0:01:13]} 20. Rac1 {[%emt 0:03:36]} Bxh3 {[%emt 0:00:36]} 21. Bf4 {[%emt 0:02:03]} Bxg2 {[%emt 0:02:06]} 22. Kxg2 {[%emt 0:00:12]} Rb7 {[%emt 0:00:57]} 23. Rfe1 {[%emt 0:01:59]} b3 {[%emt 0:05:11]} 24. a3 {[%emt 0:04:07]} Rc7 {[%emt 0:00:17]} 25. Qe2 {[%emt 0:00:49]} e5 {[%emt 0:00:51]} 26. Be3 {[%emt 0:01:03]} Qb7 {[%emt 0:02:41]} 27. Red1 {[%emt 0:03:12]} Bg7 {[%emt 0:08:41]} 28. Kg1 {[%emt 0:02:43]} Rd7 {[%emt 0:01:05]} 29. Bd2 {[%emt 0:02:56]} Rc8 {[%emt 0:01:43]} 30. Ba5 {[%emt 0:01:39]} Bf6 {[%emt 0:01:36]} 31. Qf3 {[%emt 0:01:15]} Bd8 {[%emt 0:03:25]} 32. Bd2 {[%emt 0:03:00]} a5 {[%emt 0:00:45]} 33. Qe2 {[%emt 0:08:59]} a4 {[%emt 0:00:26]} 34. Bb4 {[%emt 0:03:46]} Qa6 {[%emt 0:00:25]} 35. f4 {[%emt 0:09:01]} Bf6 {[%emt 0:03:56]} 36. Kg2 {[%emt 0:02:16]} exf4 {[%emt 0:00:44]} 37. gxf4 {[%emt 0:00:43]} Re7 {[%emt 0:00:24]} 38. Qf2 {[%emt 0:02:09]} Rxc4 {[%emt 0:01:10]} 39. Qf1 {[%emt 0:00:46]} Rc2+ {[%emt 0:00:54]} 40. Rd2 {[%emt 0:00:43]} Qxf1+ {[%emt 0:00:33]} 41. Rxf1 {[%emt 0:50:08]} Rxd2+ {[%emt 0:50:22]} 42. Bxd2 {[%emt 0:00:05]} Re2+ {[%emt 0:00:15]} 43. Rf2 {[%emt 0:00:04]} Rxf2+ {[%emt 0:00:07]} 44. Kxf2 {[%emt 0:00:03]} Bxb2 {[%emt 0:00:10]} 45. Ke2 {[%emt 0:00:17]} Bxa3 {[%emt 0:00:15]} 46. Kd3 {[%emt 0:00:10]} h5 {[%emt 0:00:19]} 47. Be1 {[%emt 0:00:07]} Bc1 {[%emt 0:00:18]} 48. Kc3 {[%emt 0:00:12]} Bxf4 {[%emt 0:00:10]} 49. Kb2 {[%emt 0:00:03]} g5 {[%emt 0:00:14]} 50. Ka3 {[%emt 0:00:07]} h4 {[%emt 0:00:07]} 51. Kb2 {[%emt 0:00:10]} h3 {[%emt 0:00:07]} 52. Bb4 {[%emt 0:00:10]} h2 {[%emt 0:00:08]} 53. Bc3 {[%emt 0:00:06]} h1=Q {[%emt 0:00:11]} 54. Bd4 {[%emt 0:00:05]} Qc1# {[%emt 0:00:41]} 0-1